[Event "Marienbad Open-B1 2019"]
[Site "Marianske Lazne"]
[Date "2019.01.20"]
[Round "2"]
[White "Gorbatov, Alexej"]
[Black "Florstedt, Johannes"]
[Result "0-1"]
[ECO "B20"]
[WhiteElo "2389"]
[BlackElo "2320"]
[Annotator "ChessBase"]
[PlyCount "66"]
[EventDate "2019.01.17"]
[EventType "tourn"]
[EventCountry "CZE"]
[SourceTitle "playchess.com"]
[Source "ChessBase"]
[SourceQuality "1"]
[TimeControl "40/5400+30:1800+30"]

1. e4 {[%emt 0:00:00]} c5 {[%emt 0:00:00]} 2. d3 {[%emt 0:00:00]} Nc6 {[%emt 0:00:00]} 3. Be3 {[%emt 0:01:11]} Nf6 {[%emt 0:04:46]} 4. Nd2 {[%emt 0:02:07]} e6 {[%emt 0:00:33]} 5. f4 {[%emt 0:03:06]} h5 {[%emt 0:08:03]} 6. Ngf3 {[%emt 0:08:19]} d5 {[%emt 0:04:45]} 7. Be2 {[%emt 0:02:56]} d4 {[%emt 0:06:50]} 8. Bf2 {[%emt 0:04:49]} Ng4 {[%emt 0:04:55]} 9. O-O {[%emt 0:01:12]} Qc7 {[%emt 0:03:34]} 10. g3 {[%emt 0:08:48]} Be7 {[%emt 0:00:57]} 11. h4 {[%emt 0:04:22]} Bd7 {[%emt 0:07:18]} 12. Ng5 {[%emt 0:02:58]} f6 {[%emt 0:06:17]} 13. Nh3 {[%emt 0:04:44]} g5 {[%emt 0:01:17]} 14. hxg5 {[%emt 0:09:49]} fxg5 {[%emt 0:01:00]} 15. c3 {[%emt 0:19:24]} O-O-O {[%emt 0:04:58]} 16. cxd4 {[%emt 0:20:34]} cxd4 {[%emt 0:00:15]} 17. Kg2 {[%emt 0:02:26]} Nxf2 {[%emt 0:21:57]} 18. Rxf2 {[%emt 0:00:09]} Rdg8 {[%emt 0:01:21]} 19. Bxh5 {[%emt 0:01:31]} gxf4 {[%emt 0:00:56]} 20. Nxf4 {[%emt 0:00:33]} Bd6 {[%emt 0:00:21]} 21. Ng6 {[%emt 0:00:58]} Rh6 {[%emt 0:00:12]} 22. Qg4 {[%emt 0:00:24]} Rhxg6 {[%emt 0:10:53]} 23. Bxg6 {[%emt 0:00:02]} Ne5 {[%emt 0:00:14]} 24. Qd1 {[%emt 0:01:03]} Nxg6 {[%emt 0:00:47]} 25. Rc1 {[%emt 0:00:01]} Bc6 {[%emt 0:00:09]} 26. Qb3 {[%emt 0:00:54]} Qe7 {[%emt 0:00:54]} 27. Nf3 {[%emt 0:00:30]} Bxg3 {[%emt 0:05:51]} 28. Rfc2 {[%emt 0:00:01]} Nh4+ {[%emt 0:01:04]} 29. Nxh4 {[%emt 0:00:34]} Bxh4+ {[%emt 0:00:10]} 30. Kh1 {[%emt 0:00:22]} Bg3 {[%emt 0:01:54]} 31. Rg2 {[%emt 0:00:47]} Qh4+ {[%emt 0:00:52]} 32. Kg1 {[%emt 0:00:02]} Bh2+ {[%emt 0:00:58]} 33. Kf1 {[%emt 0:00:21]} Qf4+ {[%emt 0:00:07]} 0-1

[Event "Marienbad Open-B1 2019"]
[Site "Marianske Lazne"]
[Date "2019.01.20"]
[Round "2"]
[White "Jasny, Stanislav"]
[Black "Patil, Mitali"]
[Result "1-0"]
[ECO "D36"]
[WhiteElo "2365"]
[BlackElo "2062"]
[Annotator "ChessBase"]
[PlyCount "59"]
[EventDate "2019.01.17"]
[EventType "tourn"]
[EventCountry "CZE"]
[SourceTitle "playchess.com"]
[Source "ChessBase"]
[SourceQuality "1"]
[TimeControl "40/5400+30:1800+30"]

1. d4 {[%emt 0:00:00]} d5 {[%emt 0:00:00]} 2. c4 {[%emt 0:00:00]} e6 {[%emt 0:00:00]} 3. Nc3 {[%emt 0:00:21]} Nf6 {[%emt 0:00:00]} 4. cxd5 {[%emt 0:00:43]} exd5 {[%emt 0:00:00]} 5. Bg5 {[%emt 0:00:11]} c6 {[%emt 0:00:00]} 6. e3 {[%emt 0:00:19]} Be7 {[%emt 0:00:00]} 7. Bd3 {[%emt 0:00:15]} Nbd7 {[%emt 0:00:08]} 8. Qc2 {[%emt 0:00:14]} h6 {[%emt 0:00:15]} 9. Bf4 {[%emt 0:01:57]} Nh5 {[%emt 0:07:56]} 10. Nf3 {[%emt 0:09:34]} Nxf4 {[%emt 0:05:15]} 11. exf4 {[%emt 0:00:05]} b6 {[%emt 0:05:23]} 12. Ne5 {[%emt 0:02:04]} Bb7 {[%emt 0:02:27]} 13. O-O-O {[%emt 0:06:19]} O-O {[%emt 0:05:57]} 14. Kb1 {[%emt 0:01:35]} Bf6 {[%emt 0:17:10]} 15. Bf5 {[%emt 0:03:54]} Bxe5 {[%emt 0:03:32]} 16. fxe5 {[%emt 0:01:17]} Re8 {[%emt 0:04:49]} 17. h4 {[%emt 0:05:20]} Nf8 {[%emt 0:03:35]} 18. f4 {[%emt 0:00:49]} Ne6 {[%emt 0:03:26]} 19. Bxe6 {[%emt 0:01:20]} fxe6 {[%emt 0:00:53]} 20. g4 {[%emt 0:00:23]} Kf7 {[%emt 0:03:22]} 21. f5 {[%emt 0:07:13]} Bc8 {[%emt 0:06:10]} 22. f6 {[%emt 0:01:42]} g6 {[%emt 0:07:30]} 23. h5 {[%emt 0:02:15]} Rg8 {[%emt 0:00:04]} 24. g5 {[%emt 0:01:19]} Qf8 {[%emt 0:00:52]} 25. Rdg1 {[%emt 0:01:48]} Ba6 {[%emt 0:09:52]} 26. gxh6 {[%emt 0:07:18]} Qxh6 {[%emt 0:01:50]} 27. hxg6+ {[%emt 0:00:10]} Rxg6 {[%emt 0:00:04]} 28. Rxh6 {[%emt 0:00:30]} Rxg1+ {[%emt 0:00:12]} 29. Nd1 {[%emt 0:00:06]} Rag8 {[%emt 0:00:53]} 30. Qh7+ {[%emt 0:00:43]} 1-0

[Event "Marienbad Open-B1 2019"]
[Site "Marianske Lazne"]
[Date "2019.01.20"]
[Round "2"]
[White "Sernecki, Franciszek"]
[Black "Baum, Jonasz"]
[Result "1/2-1/2"]
[ECO "C01"]
[WhiteElo "2278"]
[BlackElo "2302"]
[Annotator "ChessBase"]
[PlyCount "139"]
[EventDate "2019.01.17"]
[EventType "tourn"]
[EventCountry "CZE"]
[SourceTitle "playchess.com"]
[Source "ChessBase"]
[SourceQuality "1"]
[TimeControl "40/5400+30:1800+30"]

1. c4 {[%emt 0:00:00]} e6 {[%emt 0:00:00]} 2. e4 {[%emt 0:00:00]} d5 {[%emt 0:01:53]} 3. exd5 {[%emt 0:00:00]} exd5 {[%emt 0:00:04]} 4. d4 {[%emt 0:00:01]} Nf6 {[%emt 0:00:43]} 5. Nc3 {[%emt 0:00:07]} Be7 {[%emt 0:01:51]} 6. Nf3 {[%emt 0:00:17]} O-O {[%emt 0:00:24]} 7. Bd3 {[%emt 0:00:06]} dxc4 {[%emt 0:01:11]} 8. Bxc4 {[%emt 0:00:12]} Bg4 {[%emt 0:06:12]} 9. Be3 {[%emt 0:01:33]} Nc6 {[%emt 0:00:57]} 10. O-O {[%emt 0:02:19]} Nb4 {[%emt 0:10:22]} 11. Rc1 {[%emt 0:29:40]} c6 {[%emt 0:02:24]} 12. Re1 {[%emt 0:05:15]} Nbd5 {[%emt 0:02:37]} 13. Bg5 {[%emt 0:01:56]} h6 {[%emt 0:07:30]} 14. Bh4 {[%emt 0:03:07]} Re8 {[%emt 0:09:32]} 15. Qd3 {[%emt 0:07:18]} Nf4 {[%emt 0:09:05]} 16. Qe3 {[%emt 0:10:33]} Bxf3 {[%emt 0:10:16]} 17. Qxf4 {[%emt 0:07:18]} Bh5 {[%emt 0:01:53]} 18. Re5 {[%emt 0:03:50]} Bg6 {[%emt 0:07:27]} 19. Rce1 {[%emt 0:06:22]} Qd7 {[%emt 0:01:08]} 20. h3 {[%emt 0:11:29]} Kh7 {[%emt 0:08:25]} 21. Qd2 {[%emt 0:05:02]} Bd6 {[%emt 0:01:36]} 22. Bxf6 {[%emt 0:00:36]} Bxe5 {[%emt 0:01:00]} 23. Bxe5 {[%emt 0:00:15]} f6 {[%emt 0:00:10]} 24. Bg3 {[%emt 0:01:00]} Rxe1+ {[%emt 0:00:05]} 25. Qxe1 {[%emt 0:00:01]} Qxd4 {[%emt 0:00:13]} 26. Bb3 {[%emt 0:01:15]} Re8 {[%emt 0:00:53]} 27. Qd1 {[%emt 0:00:36]} c5 {[%emt 0:05:28]} 28. Bc2 {[%emt 0:01:32]} Qxd1+ {[%emt 0:03:04]} 29. Bxd1 b5 30. f3 {[%emt 0:01:54]} Rd8 {[%emt 0:02:52]} 31. Be2 a6 {[%emt 0:03:07]} 32. Bf4 {[%emt 0:01:47]} b4 {[%emt 0:01:21]} 33. Na4 {[%emt 0:00:30]} c4 {[%emt 0:00:13]} 34. Kf2 {[%emt 0:00:33]} Bb1 {[%emt 0:01:24]} 35. a3 {[%emt 0:00:31]} Bc2 {[%emt 0:00:19]} 36. Nc5 {[%emt 0:00:28]} c3 {[%emt 0:00:36]} 37. Bc1 {[%emt 0:00:27]} bxa3 {[%emt 0:01:38]} 38. bxa3 {[%emt 0:00:23]} Rb8 {[%emt 0:00:16]} 39. Bxa6 {[%emt 0:00:45]} Rb1 {[%emt 0:00:44]} 40. Bd3+ {[%emt 0:00:28]} Kh8 {[%emt 0:00:23]} 41. Be3 {[%emt 0:30:30]} Bxd3 {[%emt 0:30:31]} 42. Nxd3 {[%emt 0:00:05]} Rb2+ {[%emt 0:00:24]} 43. Kf1 {[%emt 0:00:41]} Ra2 {[%emt 0:00:34]} 44. Bc1 {[%emt 0:00:12]} Kg8 {[%emt 0:00:25]} 45. g3 {[%emt 0:00:39]} Kf7 {[%emt 0:00:10]} 46. Ke1 {[%emt 0:00:38]} Rg2 {[%emt 0:00:36]} 47. g4 {[%emt 0:00:29]} Rg3 {[%emt 0:00:35]} 48. Kf2 {[%emt 0:00:27]} Rxh3 {[%emt 0:00:04]} 49. Kg2 {[%emt 0:00:08]} Rh4 {[%emt 0:00:05]} 50. Be3 {[%emt 0:00:36]} Ke6 {[%emt 0:01:30]} 51. Bf2 {[%emt 0:00:53]} g5 {[%emt 0:00:01]} 52. Bxh4 {[%emt 0:00:32]} gxh4 {[%emt 0:00:01]} 53. Kf2 {[%emt 0:00:37]} Kd5 {[%emt 0:00:08]} 54. a4 {[%emt 0:00:32]} Kc4 {[%emt 0:00:13]} 55. Ke2 {[%emt 0:00:24]} h3 {[%emt 0:00:00]} 56. Nf2 {[%emt 0:00:00]} Kb3 {[%emt 0:00:00]} 57. Kf1 {[%emt 0:00:00]} Kxa4 {[%emt 0:00:00]} 58. Kg1 {[%emt 0:00:00]} Kb3 {[%emt 0:00:00]} 59. Kh2 {[%emt 0:00:00]} c2 {[%emt 0:00:00]} 60. Nd3 {[%emt 0:00:00]} Kc3 {[%emt 0:00:00]} 61. Nc1 {[%emt 0:00:00]} Kd2 {[%emt 0:00:00]} 62. Nb3+ {[%emt 0:00:00]} Kc3 {[%emt 0:00:00]} 63. Nc1 {[%emt 0:00:00]} Kd2 {[%emt 0:00:00]} 64. Na2 {[%emt 0:00:00]} Ke3 {[%emt 0:00:00]} 65. Kxh3 {[%emt 0:00:00]} Kxf3 {[%emt 0:00:00]} 66. Nc1 {[%emt 0:00:00]} Kf4 {[%emt 0:00:00]} 67. Ne2+ {[%emt 0:00:00]} Kg5 {[%emt 0:00:00]} 68. Kg3 {[%emt 0:00:00]} h5 {[%emt 0:00:00]} 69. gxh5 {[%emt 0:00:00]} Kxh5 {[%emt 0:00:00]} 70. Kf4 {[%emt 0:00:00]} 1/2-1/2

[Event "Marienbad Open-B1 2019"]
[Site "Marianske Lazne"]
[Date "2019.01.20"]
[Round "2"]
[White "Voinikonis, Nikita"]
[Black "Mica, Marek"]
[Result "1/2-1/2"]
[ECO "A45"]
[WhiteElo "2163"]
[BlackElo "2212"]
[Annotator "ChessBase"]
[PlyCount "69"]
[EventDate "2019.01.17"]
[EventType "tourn"]
[EventCountry "CZE"]
[SourceTitle "playchess.com"]
[Source "ChessBase"]
[SourceQuality "1"]
[TimeControl "40/5400+30:1800+30"]

1. d4 {[%emt 0:00:00]} Nf6 {[%emt 0:00:00]} 2. Bg5 {[%emt 0:00:00]} e6 {[%emt 0:01:47]} 3. e4 {[%emt 0:00:28]} h6 {[%emt 0:01:00]} 4. Bxf6 {[%emt 0:00:08]} Qxf6 {[%emt 0:00:22]} 5. c3 {[%emt 0:00:08]} d5 {[%emt 0:01:13]} 6. Nd2 {[%emt 0:00:12]} c5 {[%emt 0:05:10]} 7. dxc5 {[%emt 0:10:47]} Bxc5 {[%emt 0:01:30]} 8. Ngf3 {[%emt 0:00:04]} Nc6 {[%emt 0:03:57]} 9. exd5 {[%emt 0:10:18]} exd5 {[%emt 0:00:17]} 10. Bd3 {[%emt 0:00:04]} O-O {[%emt 0:02:21]} 11. O-O {[%emt 0:00:08]} Bg4 {[%emt 0:08:53]} 12. Qa4 {[%emt 0:14:40]} Bxf3 {[%emt 0:07:54]} 13. Nxf3 {[%emt 0:00:06]} d4 {[%emt 0:01:00]} 14. c4 {[%emt 0:04:59]} Rfe8 {[%emt 0:02:59]} 15. a3 {[%emt 0:01:28]} a5 {[%emt 0:00:34]} 16. Rfe1 {[%emt 0:01:02]} b6 {[%emt 0:22:41]} 17. Re4 {[%emt 0:24:03]} Rxe4 {[%emt 0:10:51]} 18. Bxe4 {[%emt 0:00:29]} Rc8 {[%emt 0:00:10]} 19. Bd3 {[%emt 0:04:56]} Ne5 {[%emt 0:09:26]} 20. Nxe5 {[%emt 0:00:20]} Qxe5 {[%emt 0:00:05]} 21. b4 {[%emt 0:00:57]} Bd6 {[%emt 0:00:05]} 22. g3 {[%emt 0:00:16]} Qe8 {[%emt 0:00:31]} 23. Qxe8+ {[%emt 0:07:13]} Rxe8 {[%emt 0:00:05]} 24. c5 {[%emt 0:00:11]} bxc5 {[%emt 0:04:18]} 25. bxa5 {[%emt 0:00:04]} Rc8 {[%emt 0:02:14]} 26. Bc4 {[%emt 0:00:36]} Rb8 {[%emt 0:00:34]} 27. a6 {[%emt 0:03:05]} Bc7 {[%emt 0:00:30]} 28. Kg2 {[%emt 0:06:43]} Kf8 {[%emt 0:00:40]} 29. Kf3 {[%emt 0:00:12]} Ke7 {[%emt 0:01:04]} 30. Ke4 {[%emt 0:05:03]} Kd6 {[%emt 0:00:44]} 31. Bxf7 {[%emt 0:00:21]} Rf8 {[%emt 0:00:39]} 32. Bc4 {[%emt 0:04:18]} Rxf2 {[%emt 0:01:07]} 33. Rf1 {[%emt 0:01:37]} Rxf1 {[%emt 0:00:53]} 34. Bxf1 {[%emt 0:00:05]} Kc6 {[%emt 0:00:11]} 35. a4 {[%emt 0:00:26]} 1/2-1/2

[Event "Marienbad Open-B1 2019"]
[Site "Marianske Lazne"]
[Date "2019.01.21"]
[Round "3"]
[White "Florstedt, Johannes"]
[Black "Jasny, Stanislav"]
[Result "1/2-1/2"]
[ECO "B56"]
[WhiteElo "2320"]
[BlackElo "2365"]
[Annotator "NA"]
[PlyCount "71"]
[EventDate "2019.01.17"]
[EventType "tourn"]
[EventCountry "CZE"]
[SourceTitle "playchess.com"]
[Source "ChessBase"]
[SourceQuality "1"]
[TimeControl "40/5400+30:1800+30"]

1. e4 {[%emt 0:00:33]} c5 {[%emt 0:00:00]} 2. Nf3 {[%emt 0:00:07]} d6 {[%emt 0:00:29]} 3. d4 {[%emt 0:00:06]} cxd4 {[%emt 0:00:06]} 4. Nxd4 {[%emt 0:00:03]} Nf6 {[%emt 0:00:09]} 5. Nc3 {[%emt 0:00:05]} Nc6 {[%emt 0:00:30]} 6. f3 {[%emt 0:00:10]} e6 {[%emt 0:04:18]} 7. Be3 {[%emt 0:00:19]} Be7 {[%emt 0:00:25]} 8. Qd2 {[%emt 0:00:08]} O-O {[%emt 0:00:28]} 9. O-O-O {[%emt 0:01:02]} a6 {[%emt 0:02:03]} 10. g4 {[%emt 0:04:01]} Nd7 {[%emt 0:02:47] LiveBook: 278 Games} 11. h4 {[%emt 0:01:08]} Nxd4 {[%emt 0:00:46]} 12. Bxd4 {[%emt 0:00:08]} b5 {[%emt 0:00:28]} 13. g5 {[%emt 0:05:11]} Qc7 {[%emt 0:01:15] B80: Sicilian Scheveningen: 6 g3 and 6 Be3, including English Attack} (13... b4 14. Ne2 a5 15. f4 Bb7 16. Ng3 Qc7 17. Kb1 a4 18. Qxb4 Rfc8 19. Bd3 Nc5 20. Qd2 d5 21. e5 Ne4 22. Bxe4 dxe4 {1-0 (59) Anand,V (2786)-Andreikin,D (2713) Moscow 2013}) 14. a3 {[%emt 0:09:17]} Ne5 {[%emt 0:02:20]} 15. Qg2 {[%emt 0:07:34]} Nc6 {[%emt 0:04:33]} 16. Be3 $146 {[%emt 0:02:01]} ({Predecessor:} 16. Bf6 b4 17. axb4 Nxb4 18. Rd4 Rb8 19. Qg3 Rd8 20. Rh2 {1-0 (42) Milov,L (2482)-Schramm,C (2325) Bad Homburg 2007}) 16... b4 {[%emt 0:00:12]} 17. axb4 {[%emt 0:00:11]} Nxb4 {[%emt 0:00:07]} 18. h5 {[%emt 0:00:25]} Rb8 {[%emt 0:14:03]} 19. f4 {[%emt 0:10:48]} f5 {[%emt 0:22:37]} (19... d5 $5) 20. h6 {[%emt 0:07:11]} g6 {[%emt 0:00:13]} 21. Qd2 {[%emt 0:12:35]} fxe4 {[%emt 0:09:14]} 22. Qd4 {[%emt 0:04:13]} Rf7 {[%emt 0:01:42]} 23. Qxe4 {[%emt 0:03:35]} (23. f5 $17 {was called for.} Nc6 24. Qxe4) 23... Bb7 {[%emt 0:14:02]} 24. Qxb4 {[%emt 0:00:25]} Bxh1 {[%emt 0:00:08]} 25. Qd4 {[%emt 0:00:27]} Bb7 {[%emt 0:09:13]} 26. Bc4 {[%emt 0:01:26]} d5 {[%emt 0:00:39]} 27. Bb3 {[%emt 0:02:31]} Bc6 {[%emt 0:00:20]} 28. Bd2 {[%emt 0:16:05]} Ba8 {[%emt 0:06:49]} 29. Re1 {[%emt 0:02:28]} (29. Qe3 $17) 29... Bc5 {[%emt 0:00:24]} 30. Qd3 {[%emt 0:00:04]} Qd6 {[%emt 0:03:53]} 31. Ne2 {[%emt 0:01:41]} Bb4 {[%emt 0:00:38]} 32. c3 {[%emt 0:01:40]} Bc5 {[%emt 0:00:03]} 33. Bc2 {[%emt 0:00:35]} Qb6 {[%emt 0:00:37]} 34. b4 {[%emt 0:00:07]} Bf2 {[%emt 0:00:53]} 35. Rf1 {[%emt 0:00:38]} Qa7 {[%emt 0:00:06]} 36. Qh3 $19 {[%emt 0:05:15]} 1/2-1/2

[Event "Marienbad Open-B1 2019"]
[Site "Marianske Lazne"]
[Date "2019.01.21"]
[Round "3"]
[White "Mica, Marek"]
[Black "Sernecki, Franciszek"]
[Result "1/2-1/2"]
[ECO "D38"]
[WhiteElo "2212"]
[BlackElo "2278"]
[Annotator "NA"]
[PlyCount "120"]
[EventDate "2019.01.17"]
[EventType "tourn"]
[EventCountry "CZE"]
[SourceTitle "playchess.com"]
[Source "ChessBase"]
[SourceQuality "1"]
[TimeControl "40/5400+30:1800+30"]

1. d4 {[%emt 0:00:00]} Nf6 {[%emt 0:00:00]} 2. c4 {[%emt 0:00:00]} e6 {[%emt 0:00:00]} 3. Nf3 {[%emt 0:00:00]} d5 {[%emt 0:00:00]} 4. Nc3 {[%emt 0:00:04]} Bb4 {[%emt 0:00:10]} 5. Qa4+ {[%emt 0:00:20]} Nc6 {[%emt 0:00:13]} 6. e3 {[%emt 0:00:34]} O-O {[%emt 0:01:12]} 7. Bd2 {[%emt 0:01:17] LiveBook: 386 Games} dxc4 {[%emt 0:10:05] D38: Queen's Gambit Declined: Ragozin Defence (4 Nf3 Bb4)} 8. Bxc4 {[%emt 0:00:11]} Bd6 {[%emt 0:00:31]} 9. Qc2 {[%emt 0:06:01]} (9. e4 e5 10. dxe5 Nxe5 11. Nxe5 Bxe5 12. O-O-O Qe8 13. Qxe8 Rxe8 14. f3 Be6 15. Bxe6 Rxe6 {½-½ (67) Navara,D (2727)-Harikrishna,P (2732) Prague 2018}) 9... e5 {[%emt 0:07:00]} 10. d5 {[%emt 0:00:36]} Ne7 {[%emt 0:00:39]} 11. e4 $146 {[%emt 0:02:28]} ({Predecessor:} 11. O-O a6 12. a3 h6 13. h3 b5 14. Ba2 Bb7 15. e4 {1-0 (39) Georgiev,K (2625)-Parligras,M (2572) Skopje 2014}) 11... Bg4 {[%emt 0:17:46]} 12. Qd3 {[%emt 0:06:49]} c6 {[%emt 0:04:06]} 13. h3 {[%emt 0:07:08]} Bxf3 {[%emt 0:16:28]} 14. Qxf3 {[%emt 0:00:07]} b5 {[%emt 0:00:50]} 15. Bb3 {[%emt 0:00:59]} b4 {[%emt 0:01:03]} 16. Ne2 {[%emt 0:01:35]} cxd5 {[%emt 0:00:37]} 17. Bxd5 {[%emt 0:03:01]} Nexd5 {[%emt 0:01:09]} 18. exd5 {[%emt 0:00:09]} Be7 {[%emt 0:15:02]} 19. Ng3 {[%emt 0:05:00]} Qxd5 {[%emt 0:05:11]} 20. Nf5 {[%emt 0:01:37]} Bc5 {[%emt 0:00:42]} 21. Qxd5 {[%emt 0:02:21]} Nxd5 {[%emt 0:00:08]} 22. Rc1 {[%emt 0:00:35]} Rac8 {[%emt 0:02:57]} 23. Ke2 {[%emt 0:00:56]} Rfd8 {[%emt 0:05:11]} 24. Rhd1 {[%emt 0:01:16]} Bf8 {[%emt 0:03:32]} 25. Rxc8 {[%emt 0:05:06]} Rxc8 {[%emt 0:00:01]} 26. Bg5 {[%emt 0:00:39]} Nb6 {[%emt 0:01:18]} 27. Ne7+ $1 {[%emt 0:00:41]} Bxe7 $1 {[%emt 0:00:01]} 28. Bxe7 {[%emt 0:00:20]} Rc2+ {[%emt 0:02:52]} 29. Kf3 {[%emt 0:01:28]} f6 {[%emt 0:01:37]} 30. Bxb4 {[%emt 0:00:38]} Rxb2 {[%emt 0:00:26]} 31. a3 {[%emt 0:00:05]} Kf7 {[%emt 0:01:30]} 32. Rd8 $1 {[%emt 0:00:51]} Rb3+ {[%emt 0:01:34]} 33. Ke4 {[%emt 0:01:04]} Rb2 {[%emt 0:01:24]} 34. Kf3 {[%emt 0:06:51]} Rc2 {[%emt 0:00:31]} 35. h4 {[%emt 0:02:28]} Rc8 {[%emt 0:00:48]} 36. Rd6 {[%emt 0:01:12]} Rc7 {[%emt 0:00:43]} 37. Ba5 {[%emt 0:02:54]} Ke7 {[%emt 0:00:32]} 38. Bb4 {[%emt 0:01:16]} Kf7 {[%emt 0:00:00]} 39. Ba5 {[%emt 0:03:09]} Rd7 {[%emt 0:00:15]} 40. Rc6 {[%emt 0:02:17]} Nd5 {[%emt 0:00:16]} 41. Ke4 {[%emt 0:31:00]} Ne7 {[%emt 0:30:57]} 42. Ra6 {[%emt 0:05:41]} Rd4+ {[%emt 0:00:00]} 43. Kf3 {[%emt 0:00:00]} Rf4+ {[%emt 0:00:00]} 44. Ke2 {[%emt 0:00:00]} Rxh4 {[%emt 0:00:00]} 45. Bb4 {[%emt 0:00:00]} Nf5 {[%emt 0:00:00]} 46. Rxa7+ {[%emt 0:00:00]} Ke6 {[%emt 0:00:00]} 47. g3 {[%emt 0:00:00]} Rh1 {[%emt 0:00:00]} 48. Kf3 {[%emt 0:00:00]} Rd1 {[%emt 0:00:00]} 49. g4 {[%emt 0:00:00]} Nh4+ {[%emt 0:00:00]} 50. Kg3 {[%emt 0:00:00]} Rd3+ {[%emt 0:00:00]} 51. Kh2 {[%emt 0:00:00]} (51. Kxh4 $2 {gets mated.} g5+ 52. Kh5 Rh3#) 51... Rd7 $11 {[%emt 0:00:00]} 52. Rxd7 {[%emt 0:00:00]} Kxd7 {[%emt 0:00:00]} 53. Bf8 {[%emt 0:00:00]} g5 {[%emt 0:00:00]} 54. a4 {[%emt 0:00:00]} Nf3+ {[%emt 0:00:40]} 55. Kg2 {[%emt 0:00:00]} e4 {[%emt 0:01:48]} 56. a5 {[%emt 0:05:34]} Kc6 {[%emt 0:00:38]} 57. Be7 {[%emt 0:00:45]} Ne5 {[%emt 0:00:07]} 58. Bxf6 Nxg4 {[%emt 0:00:07]} 59. Bxg5 {[%emt 0:01:08]} Kb5 {[%emt 0:00:06]} 60. Kg3 {[%emt 0:00:40]} Nxf2 {[%emt 0:00:08]} 1/2-1/2

[Event "Marienbad Open-B1 2019"]
[Site "Marianske Lazne"]
[Date "2019.01.21"]
[Round "3"]
[White "Patil, Mitali"]
[Black "Voinikonis, Nikita"]
[Result "1-0"]
[ECO "B06"]
[WhiteElo "2062"]
[BlackElo "2163"]
[Annotator "NA"]
[PlyCount "63"]
[EventDate "2019.01.17"]
[EventType "tourn"]
[EventCountry "CZE"]
[SourceTitle "playchess.com"]
[Source "ChessBase"]
[SourceQuality "1"]
[TimeControl "40/5400+30:1800+30"]

1. e4 {[%emt 0:00:00]} g6 {[%emt 0:01:14]} 2. d4 {[%emt 0:00:00]} Bg7 {[%emt 0:00:05]} 3. Nc3 {[%emt 0:00:00]} d6 {[%emt 0:00:05]} 4. f4 {[%emt 0:00:48]} e6 {[%emt 0:00:35]} 5. Nf3 {[%emt 0:00:23]} Ne7 {[%emt 0:00:05]} 6. Be3 {[%emt 0:00:24]} b6 {[%emt 0:00:08] B06: Modern Defence} (6... a6 7. Bd3 b5 8. O-O O-O 9. Qd2 Nd7 10. f5 exf5 11. exf5 Nxf5 12. Bxf5 gxf5 13. Bg5 Nf6 14. Rae1 c6 {½-½ (50) Kacharava,N (2362)-Paravyan,D (2613) Batumi 2018}) 7. Qd2 {[%emt 0:02:29]} d5 {[%emt 0:05:21]} 8. e5 {[%emt 0:03:14]} Qd7 $146 {[%emt 0:01:13]} ({Predecessor:} 8... Nd7 9. O-O-O a6 10. Be2 b5 11. g4 Nb6 12. b3 Nc6 13. h4 Qe7 14. Nb1 {½-½ (73) Treffert,P (2295)-Reich,T (2440) Germany 2006}) 9. Rg1 {[%emt 0:10:19]} Ba6 {[%emt 0:03:42]} 10. O-O-O {[%emt 0:09:29]} Bxf1 {[%emt 0:01:42]} 11. Rdxf1 {[%emt 0:00:02]} Nbc6 {[%emt 0:00:11]} 12. g4 {[%emt 0:03:52]} Na5 {[%emt 0:09:11]} 13. Bf2 {[%emt 0:05:04]} Nc4 {[%emt 0:03:01]} 14. Qd3 {[%emt 0:02:32]} Bh6 {[%emt 0:01:18]} 15. Ng5 {[%emt 0:05:12]} c5 {[%emt 0:03:44]} 16. h4 {[%emt 0:04:44]} cxd4 {[%emt 0:12:44]} 17. Bxd4 {[%emt 0:00:23]} Nc6 {[%emt 0:02:36]} 18. Kb1 {[%emt 0:05:56]} O-O-O {[%emt 0:03:25]} 19. Rh1 {[%emt 0:13:53]} Qe7 {[%emt 0:07:34]} 20. a3 {[%emt 0:04:34]} Bg7 {[%emt 0:24:22]} 21. Nb5 Nxd4 {[%emt 0:09:40]} 22. Nxd4 {[%emt 0:06:46]} Kb7 {[%emt 0:01:18]} 23. Re1 {[%emt 0:09:33]} h5 {[%emt 0:04:46]} 24. b3 $11 {[%emt 0:01:35]} Nxa3+ {[%emt 0:01:17]} 25. Kb2 {[%emt 0:00:28]} hxg4 {[%emt 0:00:30]} 26. Ra1 {[%emt 0:00:50]} Bf8 {[%emt 0:00:02]} 27. Ra2 {[%emt 0:02:53]} b5 {[%emt 0:03:05]} 28. Nxb5 {[%emt 0:00:58]} Nxb5 {[%emt 0:00:01]} 29. Qxb5+ {[%emt 0:00:01]} Ka8 {[%emt 0:00:02]} 30. Rxa7+ {[%emt 0:05:43]} Qxa7 {[%emt 0:00:04]} 31. Ra1 {[%emt 0:00:01]} Be7 {[%emt 0:00:01]} 32. Qc6+ {[%emt 0:01:06]} 1-0